Cogmind - Beta 14 @@@ ROGUE MODE // 2024.09.10 @ 08:50:52 Player: Wulphy Result: Self-destructed Performance ------------- Evolutions (8) 4000 Regions Visited (19) 3800 Robots Destroyed (256) 1280 Value Destroyed (13243) 13243 Prototype IDs (56) 1120 Alien Tech Used (6) 1200 Bonus (13004) 13004 TOTAL SCORE: 37647 Bonus ------- Triggered High Security 500 High Alert Combat Kills 2531 Follower Combat Kills 4106 Registered with UFD 300 Met Zhirov 300 Met Warlord at Base 500 MAIN.C Attacked Warlord 500 Warlord Defense Kills 150 Used Core Reset Matrix 3000 Met Sigix 2000 Friendly Fire -883 Cogmind --------- Core Integrity 226/1450 Matter 263/300 Energy 153/820 System Corruption 3% Temperature Cool (-200) Movement Rolling (100) Ox3 Location -2/Research Parts ------- > --- POWER (3) -------- Heavy Antimatter Reactor Particle Reactor Graviton Reactor > --- PROPULSION (4) --- Overtuned Huge Scrapsphere Overtuned Huge Scrapsphere > --- UTILITY (13) ----- Scrap Suit Advanced Cryofiber Web Experimental Heat Sink Deep Structural Scanner Experimental Targeting Computer Quantum Capacitor Phase Armor > --- WEAPON (3) ------- Vortex Driver Core Cannon > --- INVENTORY (5) ---- Matter Drive Sigix Containment Pod Peak State ------------ > --- POWER ------------ Heavy Antimatter Reactor Vortex Chain Reactor > --- PROPULSION ------- Overtuned Huge Scrapsphere Overtuned Huge Scrapsphere > --- UTILITY ---------- Scrap Suit Advanced Cryofiber Web Experimental Heat Sink Humpback Advanced Energy Well Experimental Targeting Computer Quantum Capacitor Phase Armor Advanced Force Field > --- WEAPON ----------- Vortex Driver Core Cannon > --- INVENTORY -------- Particle Reactor Graviton Reactor Matter Drive Advanced Cryofiber Web Advanced Heat Sink Advanced Coolant Injector Improved Matter Compressor Deep Structural Scanner Experimental Terrain Scanner Experimental Targeting Computer Quantum Capacitor Improved Transmission Jammer Heavy Armor Plating Advanced Force Field Long-range Tractor Beam Advanced Recalibrator Dimensional Node Initializer Transdimensional Reconstructor High-powered Transdimensional Reconstructor Subatomic Replicator Nova Cannon Vortex Driver Vortex Catalyst Activator Advanced Remote Datajack Improved Plasma Cutter RU-N14's Throwing Claymores v3 Vortex Trap Vortex Trap Signal Generator Sigix Containment Pod [Rating: 205] Favorites ----------- Power Vortex Chain Reactor Engine Ion Engine Power Core Neutrino Core Reactor Vortex Chain Reactor Propulsion Overtuned Huge Scrapsphere Treads Light Treads Leg Aluminum Leg Wheel Overtuned Huge Scrapsphere Utility Humpback Device Seismic Detector Storage Humpback Processor Experimental Targeting Computer Hackware Hacking Suite Protection Improved Heavy Armor Plating Artifact Phase Armor Weapon Mass Driver Energy Gun EM Pulse Gun Energy Cannon Nova Cannon Ballistic Gun Overtuned Coil Gun Ballistic Cannon Mass Driver Launcher Heavy Rocket Launcher Special Weapon Improved Remote Datajack Impact Weapon Core Stripper Slashing Weapon Great Axe Build | -11 -10 -10 -7 -7 -5 -5 -5 -5 -4 -4 -4 -4 -4 -4 -4 -3 -3 -3 -2 ------- Run | Yrd Mat Sub Rec Scr Fac Upp Upp War Pro Fac Was Fac Upp Upp Zhi Pro Res Qua Res Slots Evolved 16 | . . . . . 10 . . . . 2 . . . . . . 2 . 2 Power 2 | . . . . . 1 . . . . . . . . . . . . . 1 Propulsion 2 | . . . . . 2 . . . . . . . . . . . . . . Utility 11 | . . . . . 7 . . . . 2 . . . . . . 2 . . Weapon 1 | . . . . . . . . . . . . . . . . . . . 1 Parts Attached 387 | 7 9 5 6 9 72 16 17 10 7 40 . 2 6 13 8 4 50 39 67 Power 20 | 1 1 . 1 2 4 . 2 1 . . . . . . . . . 4 4 Engine 5 | 1 1 . 1 1 1 . . . . . . . . . . . . . . Core 6 | . . . . 1 3 . 2 . . . . . . . . . . . . Reactor 9 | . . . . . . . . 1 . . . . . . . . . 4 4 Propulsion 29 | 2 2 . 3 4 13 3 1 . . 1 . . . . . . . . . Treads 6 | . 2 . 3 1 . . . . . . . . . . . . . . . Leg 2 | 2 . . . . . . . . . . . . . . . . . . . Wheel 21 | . . . . 3 13 3 1 . . 1 . . . . . . . . . Hover . | . . . . . . . . . . . . . . . . . . . . Flight . | . . . . . . . . . . . . . . . . . . . . Utility 248 | 2 3 2 2 2 43 10 11 5 5 29 . 2 5 9 4 4 38 33 39 Device 218 | 1 2 2 2 1 37 10 10 5 4 26 . 2 5 9 2 4 34 30 32 Storage 11 | 1 1 . . 1 1 . . . . . . . . . 1 . . 2 4 Processor 5 | . . . . . 1 . 1 . . 1 . . . . . . 1 . 1 Hackware 5 | . . . . . 1 . . . . 2 . . . . . . 1 . 1 Protection 8 | . . . . . 3 . . . 1 . . . . . 1 . 2 1 . Artifact 1 | . . . . . . . . . . . . . . . . . . . 1 Weapon 90 | 2 3 3 . 1 12 3 3 4 2 10 . . 1 4 4 . 12 2 24 Energy Gun 5 | 2 1 1 . . . . . . . . . . . 1 . . . . . Energy Cannon 42 | . 1 2 . . 1 . . . . 6 . . . 2 2 . 9 1 18 Ballistic Gun 1 | . . . . . . 1 . . . . . . . . . . . . . Ballistic Cannon 14 | . 1 . . . 5 2 2 2 1 1 . . . . . . . . . Launcher 8 | . . . . . 4 . 1 . . 1 . . . . . . . . 2 Special Weapon 16 | . . . . . . . . 2 1 2 . . 1 1 2 . 3 . 4 Impact Weapon 1 | . . . . . . . . . . . . . . . . . . 1 . Slashing Weapon 3 | . . . . 1 2 . . . . . . . . . . . . . . Piercing Weapon . | . . . . . . . . . . . . . . . . . . . . Special Melee Weapon . | . . . . . . . . . . . . . . . . . . . . Unidentified Prototypes 16 | . . . . . . . 1 3 . 2 . . . . 3 . . 4 3 Parts Lost 17 | . . . . . 8 . . . . 1 . . . . . . 4 1 3 Power . | . . . . . . . . . . . . . . . . . . . . Propulsion 4 | . . . . . 4 . . . . . . . . . . . . . . Utility 11 | . . . . . 4 . . . . . . . . . . . 3 1 3 Weapon 2 | . . . . . . . . . . 1 . . . . . . 1 . . Highest Loss Streak 2 | . . . . . 2 . . . . 1 . . . . . . 2 1 2 To Critical Strikes . | . . . . . . . . . . . . . . . . . . . . Average Slot Usage (%) 76 | . 100 100 100 86 75 77 71 68 63 67 68 68 68 68 66 68 67 60 64 Engine 3 | . 14 14 14 6 . 5 1 . . . . . . . . . . . . Core 3 | . . . . 7 10 5 9 7 . . . . . . . . . . . Reactor 2 | . . . . . . . . 1 5 5 5 5 5 5 5 5 4 4 9 Treads 6 | . 22 28 28 13 . . . . . . . . . . . . . . . Wheel 8 | . . . . 7 16 18 12 11 11 9 10 10 10 10 10 10 8 8 8 Device 17 | . 14 14 14 8 17 22 23 23 22 24 21 21 21 21 20 21 19 17 22 Storage 7 | . 14 14 14 14 5 5 5 5 5 5 5 5 5 5 5 5 4 4 4 Processor 2 | . . . . . 4 . . . . 4 5 5 5 5 5 5 5 4 4 Hackware 1 | . . . . . . . . . . 1 5 5 5 5 5 5 1 . 1 Protection 3 | . . . . . 4 5 5 5 5 5 5 5 5 5 5 5 6 8 1 Energy Cannon 8 | . 11 13 14 14 3 . . . . 3 10 10 5 5 . 10 13 11 7 Ballistic Cannon 5 | . 4 14 14 7 4 10 10 10 10 6 . . . . . . . . . Slashing Weapon 1 | . . . . 6 1 . . . . . . . . . . . . . . Peak Build Rating 205 | 7 8 11 15 32 87 85 101 112 116 131 123 126 126 131 130 131 172 191 205 Average Rating 88 | 5 7 9 13 22 76 80 91 100 112 123 122 125 123 124 121 126 155 181 191 On Entrance 88 | . 7 8 11 15 32 79 83 95 112 112 122 123 126 123 125 126 126 162 187 Naked Turns . | . . . . . . . . . . . . . . . . . . . . Heaviest Build 354 | 15 32 37 37 219 276 270 275 289 299 298 279 292 292 296 292 296 353 354 350 Greatest Support 60 | 20 40 40 43 43 60 46 46 40 40 40 40 40 40 40 40 40 40 40 40 Greatest Overweight (x) 17 | . . . . 7 9 10 6 7 7 7 6 7 7 7 7 7 8 8 17 Average Overweight (x) 4 | . . . . 2 4 5 5 6 7 6 6 6 7 7 6 7 7 7 8 Largest Inventory Capacity 35 | 8 15 15 15 35 35 35 35 35 35 35 35 35 35 35 35 35 35 35 35 Average Capacity 29 | 7 10 15 15 23 35 35 35 35 35 35 35 35 35 35 35 35 35 35 34 Most Carried 35 | 8 14 15 15 35 35 35 35 35 35 35 35 35 35 35 35 35 35 35 35 Average Carried 28 | 5 8 14 14 19 32 34 34 34 34 34 34 35 35 34 34 34 34 34 34 Final Capacity 35 | 8 15 15 15 35 35 35 35 35 35 35 35 35 35 35 35 35 35 35 5 Final Carried 35 | 8 14 15 15 35 35 35 35 35 35 34 35 35 35 35 35 34 34 35 4 Class Distribution -------------------- 32% | Hauler-Scrapper 22% | Commander-Mutant 19% | Hauler-Mutant 12% | Mutant 8% | Hauler-Tank 4% | Hauler-Gunner Dominant Class ---------------- Mutant | -10/Materials Mutant | -10/Subcaves Commander-Mutant | -7/Recycling Commander-Mutant | -7/Scraptown Hauler-Mutant | -5/Factory Hauler-Mutant | -5/Upper Caves Hauler-Scrapper | -5/Upper Caves Hauler-Scrapper | -5/Warlord Hauler-Scrapper | -4/Proximity Caves Hauler-Scrapper | -4/Factory Hauler-Scrapper | -4/Waste Hauler-Scrapper | -4/Factory Hauler-Scrapper | -4/Upper Caves Hauler-Scrapper | -4/Upper Caves Hauler-Scrapper | -4/Zhirov Hauler-Scrapper | -3/Proximity Caves Hauler-Tank | -3/Research Hauler-Tank | -3/Quarantine Hauler-Gunner | -2/Research Resources | -11 -10 -10 -7 -7 -5 -5 -5 -5 -4 -4 -4 -4 -4 -4 -4 -3 -3 -3 -2 ----------- Run | Yrd Mat Sub Rec Scr Fac Upp Upp War Pro Fac Was Fac Upp Upp Zhi Pro Res Qua Res Matter Collected 8139 | 270 109 237 98 349 2417 306 324 128 157 748 89 39 156 219 250 273 516 549 905 Remotely 1995 | . . . . . 1152 34 . 90 85 548 . . . . . . . . 86 Salvage Created 11993 | 77 350 189 382 . 1854 107 77 55 144 786 889 67 14 363 . 385 1683 2396 2175 Parts 442 | 6 24 8 12 . 99 9 3 1 9 16 17 5 2 14 . 21 51 84 61 Haulers Intercepted 5 | . 2 . . . 1 . . . . . . . . . . . . . 2 Recyclers Shooed 8 | . . . 1 . 4 . . . . 3 . . . . . . . . . Parts Field Recycled . | . . . . . . . . . . . . . . . . . . . . Retrieved Matter . | . . . . . . . . . . . . . . . . . . . . Parts Self-Destructed 198 | . . 4 . . . 22 11 . 6 . . . 16 72 . 67 . . . Prevented 7 | . . . . . . 5 1 . . . . . . 1 . . . . . Kills | -11 -10 -10 -7 -7 -5 -5 -5 -5 -4 -4 -4 -4 -4 -4 -4 -3 -3 -3 -2 ------- Run | Yrd Mat Sub Rec Scr Fac Upp Upp War Pro Fac Was Fac Upp Upp Zhi Pro Res Qua Res Combat Hostiles Destroyed 195 | . 6 5 3 . 34 3 3 1 6 13 3 1 1 8 . 6 27 39 36 Guns 2 | . 2 . . . . . . . . . . . . . . . . . . Cannons 147 | . 2 5 3 . 25 3 1 1 4 13 . 1 1 4 . 5 21 30 28 AOE 29 | . 2 . . . 9 . 2 . 2 . . . . 3 . . 3 . 8 Classes Destroyed 27 | 2 2 2 2 . 7 2 . 1 1 . 1 . . 1 . . 1 2 3 Worker 16 | . . . . . 12 . . . . 2 . . . . . . 1 1 . Builder 5 | . . . . . 4 . . . . . . . . . . . . 1 . Tunneler 4 | 1 . . . . 2 . . . . . . . . . . . . . 1 Hauler 5 | . 2 . . . 1 . . . . . . . . . . . . . 2 Recycler 16 | 1 . . 2 . 4 . . . . 3 . . . . . . 4 . 2 Carrier 1 | . . . . . . . . . . . . . . . . . . . 1 Minesweeper 2 | . . . . . . 2 . . . . . . . . . . . . . Mechanic 3 | . . . . . . . . . . . . . . . . . 1 . 2 Operator 3 | . . . . . 1 . . . . 1 . . . . . . . . 1 Drone 2 | . . . . . . . . . 2 . . . . . . . . . . Watcher 4 | . . . . . 1 . . . . . . . . . . . . 2 1 Swarmer 31 | . . . . . 4 2 2 . 1 . . . 1 4 . 3 3 . 11 Saboteur 2 | . . . . . . . . . . . . . . . . . . 1 1 Grunt 69 | . 6 1 . . 17 . 1 . 1 5 . . . 2 . 1 10 13 12 Brawler 2 | . . . . . 1 . . . . . . . . . . . . 1 . Duelist 7 | . . . 1 . . . . . . . . . . . . . 1 1 4 Researcher 1 | . . . . . . . . . . . . . . . . . . 1 . Sentry 11 | . . . 2 . 2 . . . 1 . . 1 . . . . 3 . 2 Hunter 12 | . . . . . . 1 . . . 3 . . . 1 . 1 . 4 2 Programmer 46 | . . . . . 10 . . . 1 5 . . . . . . 10 16 4 Behemoth 3 | . . . . . . . . 1 . . . . . 1 . 1 . . . Compactor 3 | . . . . . . . . . . . 3 . . . . . . . . Lightning 3 | . . . . . . . . . . . . . . . . . . 3 . Artisan 2 | . . 2 . . . . . . . . . . . . . . . . . Subdweller 4 | . . 4 . . . . . . . . . . . . . . . . . Scrapoid 1 | . . . . . . . . . . . . . . . . . . . 1 Samaritan 1 | . . . . . . . . . . . . . . 1 . . . . . Assembled 1 | . . . . . . . . . . . . . . . . . . . 1 Best Kill Streak 24 | 2 3 1 2 . 24 2 2 1 4 4 3 1 1 4 . 3 11 7 9 Combat Bots Only 16 | . 3 1 2 . 16 1 2 1 4 3 3 1 1 4 . 3 8 6 9 Max Kills in Single Turn 5 | 1 1 1 2 . 5 1 2 1 2 2 1 1 1 4 . 1 3 3 5 Gunslinging . | . . . . . . . . . . . . . . . . . . . . Exploded 3 | . 1 . . . 2 . 2 . 1 . . . . 3 . . 3 . 2 Melee . | . . . . . . . . . . . . . . . . . . . . Uniques/NPCs Destroyed . | . . . . . . . . . . . . . . . . . . . . Combat | -11 -10 -10 -7 -7 -5 -5 -5 -5 -4 -4 -4 -4 -4 -4 -4 -3 -3 -3 -2 -------- Run | Yrd Mat Sub Rec Scr Fac Upp Upp War Pro Fac Was Fac Upp Upp Zhi Pro Res Qua Res Hostile Shots Fired 1141 | . 22 18 52 . 199 5 35 5 27 78 . 3 4 36 . 13 173 233 238 Missed 349 | . 9 6 19 . 51 . 11 2 9 34 . 2 . 13 . 3 48 73 69 Damage Taken 10560 | . 194 254 196 . 2726 62 320 53 201 450 . 27 75 294 . 155 1764 848 2941 Core 1348 | . 35 93 26 . 126 . 23 . . 16 . . 8 6 . 14 39 46 916 Absorbed by Shields 4816 | . . . 105 . 112 23 120 51 155 404 . . 69 258 . 146 1083 867 1423 Redirected to Core 628 | . . . . . . . . . . . . . . . . . . . 628 Ignored by Resistances 2591 | . . . . . 287 . . . . . . . . . . . 154 2000 150 Regen/Repaired (Parts) 1197 | . . . . . 42 20 7 192 20 65 233 . 48 141 . 54 153 118 104 Core Remaining (%) 77 | 100 . . . 38 . . . . 85 . . . . . . 96 . 66 . Volleys Fired 604 | 2 23 57 20 . 117 17 12 2 11 57 8 2 11 25 5 21 69 72 73 Largest 4 | 2 2 2 2 . 2 2 2 2 2 2 2 2 1 2 1 2 4 4 1 Hottest 436 | 80 110 95 115 . 147 114 114 114 114 210 210 210 105 210 40 210 436 436 300 Shots Fired 933 | 4 40 73 25 . 195 17 21 4 19 82 15 4 13 32 5 34 143 134 73 Gun 55 | 4 25 13 . . . . . . . . . . . 7 5 . 1 . . Cannon 851 | . 15 60 25 . 189 17 20 4 15 81 15 4 7 23 . 34 140 134 68 Launcher 8 | . . . . . 6 . 1 . . . . . . . . . . . 1 Special 19 | . . . . . . . . . 4 1 . . 6 2 . . 2 . 4 Kinetic 307 | . 4 28 8 . 164 17 20 4 15 47 . . . . . . . . . Thermal 492 | . 12 32 17 . 25 . . . . 12 15 4 7 30 5 34 115 134 50 Explosive 16 | . . . . . 6 . 1 . 4 . . . . 1 . . 1 . 3 Electromagnetic 42 | 4 24 13 . . . . . . . . . . . . . . 1 . . Entropic 66 | . . . . . . . . . . 22 . . . . . . 25 . 19 Robot Hit Streak 28 | 1 5 14 10 . 12 5 6 6 3 8 10 2 6 11 2 5 28 11 15 Robot Miss Streak 5 | 1 3 2 1 . 4 3 5 . 3 2 1 2 3 2 1 1 3 2 1 Penetration Max 3 | . . . . . 1 . . . . 1 . . . . . . 1 2 3 Secondary Targets . | . . . . . . . . . . . . . . . . . . . . Capacitor 53 | . . . . . . . . . . . . . . . . . . . 53 Shots Hit Robots 576 | 2 23 31 14 . 116 9 11 3 10 51 11 2 9 21 3 20 92 91 57 Core Hits 299 | 2 11 8 7 . 86 4 4 1 8 27 1 2 1 14 1 9 36 35 42 Critical Kills 26 | . . . . . . . . . . . 1 . . 1 . 1 2 12 9 Critical Parts Destroyed 32 | . . . . . . . . . . . . . . . . . . 14 18 Critical Strikes 103 | . . 1 1 . 6 . 1 . 4 10 1 . . 1 . 1 14 28 35 Meltdown 7 | . . . . . . . . . . . 1 . . 1 . 1 2 2 . Destroy 54 | . . . . . . . . . . . . . . . . . . 26 28 Blast 17 | . . 1 1 . 6 . 1 . 4 4 . . . . . . . . . Sever 1 | . . . . . . . . . . . . . . . . . . . 1 Sunder 24 | . . . . . . . . . . 6 . . . . . . 12 . 6 Melee Attacks 21 | . . . . . 5 . . . . . . . . . . . . 16 . Kinetic 16 | . . . . . . . . . . . . . . . . . . 16 . Impact . | . . . . . . . . . . . . . . . . . . . . Slashing 5 | . . . . . 5 . . . . . . . . . . . . . . Piercing . | . . . . . . . . . . . . . . . . . . . . Sneak Attacks . | . . . . . . . . . . . . . . . . . . . . Combat Hostiles . | . . . . . . . . . . . . . . . . . . . . Follow-up Attacks . | . . . . . . . . . . . . . . . . . . . . Damage Inflicted 43778 | 27 487 542 343 . 6835 330 582 93 962 3097 387 70 108 1268 51 774 6873 9109 11840 Guns 482 | 27 192 . . . . . . . . . . . . 168 51 . 44 . . Cannons 36453 | . 155 542 343 . 5145 330 385 93 403 2869 387 70 108 601 . 774 6270 8510 9468 Explosions 5911 | . 140 . . . 1590 . 197 . 408 228 . . . 445 . . 559 158 2186 Melee 491 | . . . . . 50 . . . . . . . . . . . . 441 . Ramming 94 | . . . . . 50 . . . . . . . . . . . . . 44 Kinetic 7719 | . 15 199 119 . 4838 330 385 93 403 896 . . . . . . . 441 . Thermal 23798 | . 280 343 224 . 583 . . . . 322 387 70 108 769 51 774 3383 8510 7994 Explosive 4598 | . . . . . 1240 . 197 . 408 228 . . . 445 . . 559 158 1363 Electromagnetic 337 | 27 192 . . . 74 . . . . . . . . . . . 44 . . Impact . | . . . . . . . . . . . . . . . . . . . . Slashing 397 | . . . . . 50 . . . 151 . . . . 54 . . . . 142 Piercing . | . . . . . . . . . . . . . . . . . . . . Entropic 6835 | . . . . . . . . . . 1651 . . . . . . 2887 . 2297 Highest Corruption 9 | . 1 1 1 . 3 2 1 1 3 8 8 8 8 9 9 9 7 7 3 Average Corruption 4 | . 1 1 1 . 2 1 1 1 2 5 8 8 8 8 9 9 3 7 2 Corruption Purged 6 | . . . 1 . 3 2 . . . . . . . . . . . . . Corruption Blocked . | . . . . . . . . . . . . . . . . . . . . Effects 257 | . 4 17 1 . 2 5 5 1 3 32 15 7 36 34 10 36 17 31 1 Message Errors 61 | . 1 2 1 . . . 3 1 . 10 2 1 11 6 2 7 3 11 . Matter Fused 64 | . 1 11 . . 1 . . . . 6 5 3 8 9 3 10 3 4 . Heat Flow Errors 36 | . 1 2 . . . 1 . . . 4 1 1 3 3 1 4 4 10 1 Energy Discharges 25 | . . 1 . . . 2 . . 1 2 4 1 4 2 2 4 1 1 . Parts Rejected 1 | . . . . . . . . . . 1 . . . . . . . . . Parts Fused 4 | . . . . . . . . . . 1 . . . . . 1 1 1 . Data Loss (minor) 26 | . . . . . . . 1 . . 5 2 . 4 5 1 3 3 2 . Data Loss (major) 14 | . 1 1 . . . 1 . . 1 2 . 1 1 2 1 2 1 . . Misfires 11 | . . . . . 1 . 1 . 1 . 1 . 2 2 . 2 1 . . Alerts 11 | . . . . . . . . . . . . . 3 4 . 2 . 2 . Weapon Failures 4 | . . . . . . 1 . . . 1 . . . 1 . 1 . . . Overload Shots . | . . . . . . . . . . . . . . . . . . . . Overflow Damage 6518 | . 5 25 . . 300 50 14 . 89 502 . . . 26 . 15 811 2084 2597 Projectiles 6093 | . 5 25 . . 121 50 14 . 40 451 . . . 26 . 15 789 2030 2527 Explosions 377 | . . . . . 169 . . . 49 51 . . . . . . 22 16 70 Melee 48 | . . . . . 10 . . . . . . . . . . . . 38 . Knockbacks 68 | . . 2 . . 50 . 1 . 7 8 . . . . . . . . . Impact . | . . . . . . . . . . . . . . . . . . . . Kinetic 60 | . . 2 . . 42 . 1 . 7 8 . . . . . . . . . Secondary 8 | . . . . . 8 . . . . . . . . . . . . . . Self-Inflicted Damage 470 | . . . . . 314 . . . . 81 . . . . . . . 53 22 Shots 7 | . . . . . 5 . . . . 1 . . . . . . . 1 . Rammed 2 | . . . . . 1 . . . . . . . . . . . . . 1 Targets Rammed 2 | . . . . . 1 . . . . . . . . . . . . . 1 Kicked . | . . . . . . . . . . . . . . . . . . . . Crushed . | . . . . . . . . . . . . . . . . . . . . Highest Temperature 574 | 18 309 251 166 . 329 254 407 90 285 366 164 264 280 231 268 288 373 266 574 Average Temperature 86 | 12 110 102 60 . 77 52 99 49 113 92 43 124 84 82 138 76 92 76 120 Received Heat Transfer 2413 | . 111 96 54 . 870 . 42 6 . . . . 6 14 . 12 735 133 334 Effects 4 | . . . . . . . . . . . . . . . . . 1 1 2 Energy Bleed 1 | . . . . . . . . . . . . . . . . . . 1 . Interference 1 | . . . . . . . . . . . . . . . . . 1 . . Short Circuit 1 | . . . . . . . . . . . . . . . . . . . 1 Damage (core) 1 | . . . . . . . . . . . . . . . . . . . 1 Siege Activations . | . . . . . . . . . . . . . . . . . . . . Robots Corrupted . | . . . . . . . . . . . . . . . . . . . . Combat Hostiles . | . . . . . . . . . . . . . . . . . . . . Parts Fried 2 | . . . . . 1 . . . . . . . . . . . . . 1 Impact Corruptions 2 | . . . . . 2 . . . . . . . . . . . . . . Robots Melted 10 | . . . . . . . . . . . 3 . . 1 . 1 3 2 . Combat Hostiles 10 | . . . . . . . . . . . 3 . . 1 . 1 3 2 . Parts Melted 30 | . . . . . . . . 1 . 2 5 . . 3 . 1 6 6 6 Heat Transferred 10452 | . 496 666 296 . 496 . . . . 333 407 74 93 841 73 777 2738 2200 962 Parts Sabotaged . | . . . . . . . . . . . . . . . . . . . . Parts Stolen . | . . . . . . . . . . . . . . . . . . . . Parts Stripped 77 | . . . . . . . . . . . . . . . . . . 77 . Power Chain Reactions 3 | . 2 . . . 1 . . . . . . . . . . . . . . Alert | -11 -10 -10 -7 -7 -5 -5 -5 -5 -4 -4 -4 -4 -4 -4 -4 -3 -3 -3 -2 ------- Run | Yrd Mat Sub Rec Scr Fac Upp Upp War Pro Fac Was Fac Upp Upp Zhi Pro Res Qua Res Peak Influence 2419 | 10 130 . 107 . 1188 . . . . 367 144 79 . . . . 510 1028 2419 Initial 578 | . 6 . 50 . . . . . . 150 128 . . . . . 20 204 578 Average 313 | 5 57 . 49 . 260 . . . . 173 114 69 . . . . 333 398 1169 Maximum Alert Level 5 | . . . . . 4 . . . . 1 . . . . . . 2 3 5 Low Security (%) 49 | 100 100 . 100 . 59 . . . . 64 100 100 . . . . 18 3 . Level 1 25 | . . . . . 19 . . . . 35 . . . . . . 50 58 . Level 2 13 | . . . . . 4 . . . . . . . . . . . 31 31 28 Level 3 6 | . . . . . 15 . . . . . . . . . . . . 7 23 Level 4 1 | . . . . . 1 . . . . . . . . . . . . . 18 Level 5 1 | . . . . . . . . . . . . . . . . . . . 11 High Security 1 | . . . . . . . . . . . . . . . . . . . 17 Max Security . | . . . . . . . . . . . . . . . . . . . . Squads Dispatched 53 | . 2 . . . 15 . . . . 7 . . . 1 . . 5 10 13 Investigation 12 | . . . . . 3 . . . . 4 . . . 1 . . . . 4 Extermination 18 | . . . . . 4 . . . . 2 . . . . . . 4 6 2 Reinforcement 8 | . 2 . . . 4 . . . . . . . . . . . 1 1 . Assault 12 | . . . . . 1 . . . . 1 . . . . . . . 3 7 Garrison 3 | . . . . . 3 . . . . . . . . . . . . . . Intercept . | . . . . . . . . . . . . . . . . . . . . Searches Triggered . | . . . . . . . . . . . . . . . . . . . . Construction Impeded 3 | . . . . . 3 . . . . . . . . . . . . . . Haulers Reinforced 1 | . . . . . 1 . . . . . . . . . . . . . . Active Scanning Responses . | . . . . . . . . . . . . . . . . . . . . Cargo Convoy Interrupts 1 | . . . . . . . . . . 1 . . . . . . . . . Stealth | -11 -10 -10 -7 -7 -5 -5 -5 -5 -4 -4 -4 -4 -4 -4 -4 -3 -3 -3 -2 --------- Run | Yrd Mat Sub Rec Scr Fac Upp Upp War Pro Fac Was Fac Upp Upp Zhi Pro Res Qua Res Distress Signals 12 | . 1 . . . 4 . . 1 1 3 . . . . . . . 1 1 Communications Jammed 64 | . . . . . 13 . . . . 37 . . . . . . . 14 . Distress Signals 63 | . . . . . 13 . . . . 36 . . . . . . . 14 . Times Spotted 419 | . 17 15 10 . 69 8 9 22 7 27 5 1 20 29 . 14 30 60 76 Peak Tracking Total 16 | . 5 6 5 . 10 4 4 13 4 5 1 1 8 6 . 9 5 8 16 Tactical Retreats 16 | . . 2 . . 5 . . . 1 . . . 1 1 . . 1 2 3 Traps | -11 -10 -10 -7 -7 -5 -5 -5 -5 -4 -4 -4 -4 -4 -4 -4 -3 -3 -3 -2 ------- Run | Yrd Mat Sub Rec Scr Fac Upp Upp War Pro Fac Was Fac Upp Upp Zhi Pro Res Qua Res Traps Triggered 4 | . 1 . . . . . . . . 1 . . . . . . . 1 1 Indirectly . | . . . . . . . . . . . . . . . . . . . . Trap Hack Attempts . | . . . . . . . . . . . . . . . . . . . . Triggered . | . . . . . . . . . . . . . . . . . . . . Disarmed 4 | . . . . . 4 . . . . . . . . . . . . . . Reprogrammed 6 | . . . . . . . . . . 6 . . . . . . . . . Reused 2 | . . . . . . 1 . . . . . . . . . . . . 1 Traps Extracted . | . . . . . . . . . . . . . . . . . . . . Installed 2 | . . . . . . 1 . . . . . . . . . . . . 1 Triggered 15 | . . . . . . 4 1 8 . 1 . . . . . . . . 1 Most Traps Carried 2 | . . . . 2 2 2 2 2 2 2 2 2 2 2 2 2 2 2 2 Machines | -11 -10 -10 -7 -7 -5 -5 -5 -5 -4 -4 -4 -4 -4 -4 -4 -3 -3 -3 -2 ---------- Run | Yrd Mat Sub Rec Scr Fac Upp Upp War Pro Fac Was Fac Upp Upp Zhi Pro Res Qua Res Machines Disabled 49 | . 1 2 . . 11 1 1 1 . 12 . . 2 2 . . . 11 5 Max in Single Turn 3 | . 1 1 . . 2 1 1 1 . 3 . . 1 1 . . . 1 2 Garrison Access 2 | . . . . . . . . . . 1 . . . . . . . 1 . Machines Repaired . | . . . . . . . . . . . . . . . . . . . . Machines Dismantled 1 | . . . . . . . . 1 . . . . . . . . . . . Machines Sabotaged . | . . . . . . . . . . . . . . . . . . . . Overloaded Fab Kills . | . . . . . . . . . . . . . . . . . . . . Hacking | -11 -10 -10 -7 -7 -5 -5 -5 -5 -4 -4 -4 -4 -4 -4 -4 -3 -3 -3 -2 --------- Run | Yrd Mat Sub Rec Scr Fac Upp Upp War Pro Fac Was Fac Upp Upp Zhi Pro Res Qua Res Machines Accessed 86 | . 6 2 8 9 11 2 1 4 . 12 . . 1 2 5 . 2 16 5 Terminals 38 | . 5 . 6 . 7 . . . . 6 . . . 1 . . . 11 2 Fabricators 2 | . . . . . . . . . . 1 . . . . . . . . 1 Repair Stations 4 | . . . . . 1 . . . . 1 . . . . . . . 2 . Recycling Units 9 | . 1 . 1 . 1 . . . . 3 . . . . . . 1 . 2 Scanalyzers 5 | . . . . . 1 . . . . 1 . . . . . . 1 2 . Garrison Access 2 | . . . . . 1 . . . . . . . . . . . . 1 . Total Hacks 242 | . 21 14 21 52 28 2 1 5 . 31 . . 1 7 18 . 5 26 10 Successful 163 | . 10 14 13 52 10 2 1 5 . 15 . . 1 7 18 . . 11 4 Failed 79 | . 11 . 8 . 18 . . . . 16 . . . . . . 5 15 6 Catastrophic 18 | . 2 . 1 . 4 . . . . 2 . . . . . . 1 6 2 Database Lockouts . | . . . . . . . . . . . . . . . . . . . . Manual 39 | . 7 . 2 . 5 . . 1 . 15 . . . . . . 2 4 3 Terminals 101 | . 18 . 14 . 21 . . . . 19 . . . 6 . . . 19 4 Fabricators 4 | . . . . . . . . . . 1 . . . . . . . . 3 Repair Stations 6 | . . . . . 3 . . . . 1 . . . . . . . 2 . Recycling Units 13 | . 3 . 1 . 1 . . . . 3 . . . . . . 2 . 3 Scanalyzers 16 | . . . . . 2 . . . . 7 . . . . . . 3 4 . Garrison Access 2 | . . . . . 1 . . . . . . . . . . . . 1 . Terminal Hacks 138 | . 7 14 11 52 6 2 1 5 . 5 . . 1 7 18 . . 8 1 Record 91 | . . 13 5 51 . 1 . 4 . . . . . 7 6 . . 4 . Part Schematic 4 | . . . . . . . . . . . . . . . 4 . . . . Robot Analysis 5 | . . . . . . . . . . 1 . . . . 4 . . . . Prototype ID Bank 6 | . . . 1 . 1 . . . . . . . . . 4 . . . . Open Door 5 | . . . . . . 1 1 1 . . . . 1 . . . . 1 . Branch Access Points 3 | . . . . . 1 . . . . 1 . . . . . . . . 1 Emergency Access Points 2 | . 2 . . . . . . . . . . . . . . . . . . Terminal Index 2 | . . . 1 . . . . . . . . . . . . . . 1 . Alert Level 3 | . . . 1 . 1 . . . . 1 . . . . . . . . . Unreport Threat 2 | . 1 . . . . . . . . . . . . . . . . 1 . Locate Traps 5 | . 2 . . . 1 . . . . 1 . . . . . . . 1 . Disarm Traps 1 | . . . . . 1 . . . . . . . . . . . . . . Reprogram Traps 1 | . . . . . . . . . . 1 . . . . . . . . . Security Status 2 | . 1 . 1 . . . . . . . . . . . . . . . . Transport Status 1 | . 1 . . . . . . . . . . . . . . . . . . Registered Components 1 | . . . . . 1 . . . . . . . . . . . . . . Zone Layout 1 | . . . 1 . . . . . . . . . . . . . . . . Derelict Proto ID Bank 2 | . . 1 . 1 . . . . . . . . . . . . . . . Release Object 1 | . . . 1 . . . . . . . . . . . . . . . . Fabricator Hacks 1 | . . . . . . . . . . . . . . . . . . . 1 Build 1 | . . . . . . . . . . . . . . . . . . . 1 Repair Station Hacks 1 | . . . . . 1 . . . . . . . . . . . . . . Scan Component 1 | . . . . . 1 . . . . . . . . . . . . . . Recycling Unit Hacks 2 | . 1 . 1 . . . . . . . . . . . . . . . . Process 1 | . 1 . . . . . . . . . . . . . . . . . . Retrieve Components 1 | . . . 1 . . . . . . . . . . . . . . . . Scanalyzer 10 | . . . . . 2 . . . . 6 . . . . . . . 2 . Insert Component 8 | . . . . . 2 . . . . 4 . . . . . . . 2 . Analyze 2 | . . . . . . . . . . 2 . . . . . . . . . Garrison Access Hacks . | . . . . . . . . . . . . . . . . . . . . Unauthorized Hacks 9 | . . . 1 . 1 . . . . 4 . . . . . . . 1 2 Terminals 3 | . . . 1 . . . . . . 1 . . . . . . . 1 . Botnet 3 | . . . 1 . . . . . . 1 . . . . . . . 1 . Fabricators . | . . . . . . . . . . . . . . . . . . . . Repair Stations 6 | . . . . . 1 . . . . 3 . . . . . . . . 2 Recycling Units . | . . . . . . . . . . . . . . . . . . . . Fedlink 1 | . . . . . . . . . . 1 . . . . . . . . . Scrapoids 5 | . . . . . 1 . . . . 2 . . . . . . . . 2 Scanalyzers . | . . . . . . . . . . . . . . . . . . . . Garrison Access . | . . . . . . . . . . . . . . . . . . . . Data Cores Recovered 2 | . . . . . 1 . . . . . . . . . . . . . 1 Used 1 | . . . . . 1 . . . . . . . . . . . . . . Hacking Detections 48 | . 6 . 6 . 9 . . . . 8 . . . 1 . . 2 12 4 Full Trace Events 3 | . . . . . . . . . . 1 . . . 1 . . . . 1 Feedback Events . | . . . . . . . . . . . . . . . . . . . . Feedback Blocked . | . . . . . . . . . . . . . . . . . . . . Robot Schematics Acquired 3 | . . . . . . . . . . . . . . . . . . 3 . Robots Built . | . . . . . . . . . . . . . . . . . . . . Authchips . | . . . . . . . . . . . . . . . . . . . . Time . | . . . . . . . . . . . . . . . . . . . . Total Robot Build Rating . | . . . . . . . . . . . . . . . . . . . . Part Schematics Acquired 8 | . . . . . . . . . . 1 . . . . 4 . . 3 . Parts Built 2 | . . . . . . . . . . . . . . . . . . . 2 Authchips . | . . . . . . . . . . . . . . . . . . . . Time 139 | . . . . . . . . . . . . . . . . . . . 139 Total Part Build Rating 18 | . . . . . . . . . . . . . . . . . . . 18 Parts Repaired . | . . . . . . . . . . . . . . . . . . . . Time . | . . . . . . . . . . . . . . . . . . . . Parts Recycled . | . . . . . . . . . . . . . . . . . . . . Recycled Matter . | . . . . . . . . . . . . . . . . . . . . Retrieved Matter . | . . . . . . . . . . . . . . . . . . . . Retrieved Components 1 | . . . 1 . . . . . . . . . . . . . . . . Parts Scanalyzed 1 | . . . . . . . . . . 1 . . . . . . . . . Part Schematics Acquired 1 | . . . . . . . . . . 1 . . . . . . . . . Parts Damaged 1 | . . . . . . . . . . 1 . . . . . . . . . Bothacking | -11 -10 -10 -7 -7 -5 -5 -5 -5 -4 -4 -4 -4 -4 -4 -4 -3 -3 -3 -2 ------------ Run | Yrd Mat Sub Rec Scr Fac Upp Upp War Pro Fac Was Fac Upp Upp Zhi Pro Res Qua Res Used RIF Installer . | . . . . . . . . . . . . . . . . . . . . Robots Hacked 2 | . . . . . . . . . . 1 . . . 1 . . . . . Non-combat 2 | . . . . . . . . . . 1 . . . 1 . . . . . Combat . | . . . . . . . . . . . . . . . . . . . . Robot Hacks Applied 2 | . . . . . . . . . . 1 . . . 1 . . . . . parse_system 1 | . . . . . . . . . . . . . . 1 . . . . . find_recycling 1 | . . . . . . . . . . 1 . . . . . . . . . Relay Couplers Released 6 | . . . . . . . . . . 4 . . . . . . . 2 . Machine Destruction 2 | . . . . . . . . . . . . . . . . . . 2 . Programmers 4 | . . . . . . . . . . 4 . . . . . . . . . Fabnet Peak Effective % . | . . . . . . . . . . . . . . . . . . . . Robots Rewired 33 | . . . 21 . . . 3 5 . . . . 2 . . 2 . . . Allies Hacked 4 | . . . . . . . . . . . . . 1 . . . 2 . 1 Hacks Repelled . | . . . . . . . . . . . . . . . . . . . . Allies | -11 -10 -10 -7 -7 -5 -5 -5 -5 -4 -4 -4 -4 -4 -4 -4 -3 -3 -3 -2 -------- Run | Yrd Mat Sub Rec Scr Fac Upp Upp War Pro Fac Was Fac Upp Upp Zhi Pro Res Qua Res Total Allies 85 | . . . 21 . 5 . 3 5 . 10 21 . 2 . . 2 . . 16 Largest Group 22 | . . . 13 12 12 5 6 7 1 5 22 22 22 19 4 5 5 . 6 Highest-Rated Group 822 | . . . 284 276 276 235 201 304 65 241 822 822 822 703 126 175 175 . 320 Highest-Rated Ally 68 | . . . 40 40 47 53 53 68 65 60 50 50 50 48 42 47 47 . 64 Total Orders 49 | . . . 2 5 5 6 . 7 . 3 . . 5 12 . 4 . . . STAY 18 | . . . . 3 3 3 . 4 . 1 . . . 1 . 3 . . . FOLLOW 15 | . . . . 2 2 3 . 3 . 2 . . 1 1 . 1 . . . GUARD 2 | . . . . . . . . . . . . . 2 . . . . . . COLLECT 2 | . . . 2 . . . . . . . . . . . . . . . . EXPLORE 6 | . . . . . . . . . . . . . 1 5 . . . . . RETURN 6 | . . . . . . . . . . . . . 1 5 . . . . . Ally Attacks 849 | . . . 33 . 49 35 37 20 . 71 68 . 141 208 . 5 8 . 174 Total Damage 21667 | . . . 1110 . 1011 649 792 1152 . 1397 1634 . 3906 5129 . 120 211 . 4556 Kills 114 | . . . 8 . 10 7 6 4 . 6 3 . 25 25 . . . . 20 Allies Corrupted 3 | . . . . . . . . . . . . . . 2 . . . . 1 Allies Melted 4 | . . . . . . . . 1 . . . . . 3 . . . . . Intel | -11 -10 -10 -7 -7 -5 -5 -5 -5 -4 -4 -4 -4 -4 -4 -4 -3 -3 -3 -2 ------- Run | Yrd Mat Sub Rec Scr Fac Upp Upp War Pro Fac Was Fac Upp Upp Zhi Pro Res Qua Res Robot Analysis Total 5 | . . . . . . . . . . 1 . . . . 4 . . . . Derelict Logs Recovered 12 | . . . . 4 . 1 2 . 1 . . . 2 2 . . . . . Drone Launches 4 | . . . . . . . . . . . . . 1 3 . . . . . Drone Recoveries 4 | . . . . . . . . . . . . . 1 3 . . . . . Exploration | -11 -10 -10 -7 -7 -5 -5 -5 -5 -4 -4 -4 -4 -4 -4 -4 -3 -3 -3 -2 ------------- Run | Yrd Mat Sub Rec Scr Fac Upp Upp War Pro Fac Was Fac Upp Upp Zhi Pro Res Qua Res Turns Passed 26228 | 110 1149 1797 1421 4539 2172 1514 825 1226 544 1268 487 214 1283 1271 316 1069 1435 2532 1056 Spaces Moved 14304 | 70 582 921 629 2642 945 935 535 744 332 679 329 139 781 656 180 673 711 1306 515 Core 4 | 4 . . . . . . . . . . . . . . . . . . . Treads 3268 | . 437 921 629 1281 . . . . . . . . . . . . . . . Legs 211 | 66 145 . . . . . . . . . . . . . . . . . . Wheels 10821 | . . . . 1361 945 935 535 744 332 679 329 139 781 656 180 673 711 1306 515 Hover . | . . . . . . . . . . . . . . . . . . . . Flight . | . . . . . . . . . . . . . . . . . . . . Fastest Speed 50 | 50 120 160 160 112 152 148 130 130 140 130 130 130 140 140 130 140 140 140 150 Average Speed 150 | 116 150 160 163 168 161 151 135 131 140 139 130 138 140 140 130 140 144 149 152 Slowest Speed 240 | 120 160 160 165 205 235 240 148 140 140 140 130 140 140 140 140 140 150 150 240 Overloaded Moves . | . . . . . . . . . . . . . . . . . . . . Propulsion Burnouts . | . . . . . . . . . . . . . . . . . . . . Robots Hopped . | . . . . . . . . . . . . . . . . . . . . Cave-ins Triggered . | . . . . . . . . . . . . . . . . . . . . Exploration Rate (%) 63 | 6 84 34 99 96 20 92 75 91 55 25 97 5 96 92 61 94 21 97 21 Regions Visited 19 Branch Regions 12 Pre-discovered Areas 11 | . . 1 . 7 . . . . . . . . . . 3 . . . . Known Exits Taken 10 | . . . . 1 1 1 1 1 1 . . 1 1 . 1 . . 1 . Unknown Exits Taken 7 | 1 1 1 1 . . . . . . . . . . 1 . 1 1 . . Scrap Searched 22 | . . . . 5 . 3 3 . 2 . . . 2 4 . 3 . . . Spaces Dug 139 | . . 3 6 . 12 1 . . . 12 . . . . . 3 43 15 44 Terrain Destroyed 734 | . 4 4 8 . 152 8 20 . 63 37 4 2 3 12 . 10 76 135 196 Melee 2 | . . . . . 2 . . . . . . . . . . . . . . Projectile 384 | . . 4 8 . 71 8 9 . 10 33 4 2 3 5 . 10 50 86 81 AOE 348 | . 4 . . . 79 . 11 . 53 4 . . . 7 . . 26 49 115 Terrain Rammed . | . . . . . . . . . . . . . . . . . . . . Walls Destroyed . | . . . . . . . . . . . . . . . . . . . . Machines Disabled . | . . . . . . . . . . . . . . . . . . . . Actions | -11 -10 -10 -7 -7 -5 -5 -5 -5 -4 -4 -4 -4 -4 -4 -4 -3 -3 -3 -2 --------- Run | Yrd Mat Sub Rec Scr Fac Upp Upp War Pro Fac Was Fac Upp Upp Zhi Pro Res Qua Res Total 18068 | 91 818 1176 1000 2736 1379 1015 613 988 390 904 378 155 963 980 259 765 979 1727 752 Wait 2085 | 5 187 171 168 8 169 32 30 170 40 114 28 13 161 273 49 60 118 239 50 Move 14286 | 69 581 920 628 2641 944 934 534 743 331 679 328 138 780 655 179 672 710 1305 515 Hop . | . . . . . . . . . . . . . . . . . . . . Pick Up 224 | 8 10 12 7 48 42 5 3 16 1 7 6 . 2 7 3 . 16 17 14 Fast Attach 48 | 7 1 . 2 4 4 3 1 2 . 2 . . . . 3 . 4 9 6 Attach 45 | . . . . . 20 2 . 1 1 3 . . . . 1 . 6 3 8 Detach 29 | . 1 . . . 5 2 . 1 . 2 . . . . 1 . 6 3 8 Swap 297 | . 8 5 4 5 48 11 16 7 6 35 . 2 6 13 5 4 40 29 53 Drop 204 | . 7 11 10 30 24 8 8 19 . 5 8 . 2 7 13 1 10 26 15 Fire 604 | 2 23 57 20 . 117 17 12 2 11 57 8 2 11 25 5 21 69 72 73 Melee 21 | . . . . . 5 . . . . . . . . . . . . 16 . Ram 2 | . . . . . 1 . . . . . . . . . . . . . 1 Kick . | . . . . . . . . . . . . . . . . . . . . Crush . | . . . . . . . . . . . . . . . . . . . . Escape Stasis 16 | . . . . . . . . . . . . . . . . . . 8 8 Rewire 196 | . . . 161 . . . 9 19 . . . . 1 . . 6 . . . Trap 2 | . . . . . . 1 . . . . . . . . . . . . 1 Miscellaneous 9 | . . . . . . . . 8 . . . . . . . 1 . . . Route ------- -11/Scrapyard -10/Materials (discovered 4 exits: [*Mat x2] / [*Min] / *Sub) -10/Subcaves (discovered 2 exits: [*Mat] / *Rec) -7/Recycling (discovered 2 exits: *Fac / *Scr) -7/Scraptown (discovered 2 exits: *Fac x2) -5/Factory (discovered 5 exits: *Fac x3 / *Upp x2) -5/Upper Caves -5/Upper Caves (discovered 2 exits: *Fac / *War) -5/Warlord -4/Proximity Caves -4/Factory (discovered 3 exits: *Res / Upp x2) -4/Waste -4/Factory -4/Upper Caves -4/Upper Caves -4/Zhirov -3/Proximity Caves -3/Research (discovered 3 exits: Res / [*Arm] / *Qua) -3/Quarantine -2/Research (discovered 3 exits: [Acc] / *Tes x2) History --------- Turn | Location | Event 2 | -11/Scrapyard | Discovered new exit (range 16) 111 | -11/Scrapyard | Entered Materials 302 | -10/Materials | Build established: Mutant 310 | -10/Materials | Discovered new exit (range 13) 627 | -10/Materials | Discovered new exit (range 6) 952 | -10/Materials | Discovered new exit (range 6) 1250 | -10/Materials | Discovered new exit (range 7) 1260 | -10/Materials | Entered Subcaves 1490 | -10/Subcaves | Visited 4L-MR0's lab 1665 | -10/Subcaves | Found Gun Armor 1831 | -10/Subcaves | Visited Clippyterm 1836 | -10/Subcaves | Learned location of Section 7 (-2) 1836 | -10/Subcaves | Learned Factory garrison access intel 2265 | -10/Subcaves | A swath of the cavern ceiling suddenly collapsed 2292 | -10/Subcaves | Discovered new exit (range 13) 2293 | -10/Subcaves | Shifting Twisted Machinery released Sub. Machine Gun 2306 | -10/Subcaves | Shifting Twisted Machinery released Sub. Optics 2632 | -10/Subcaves | A swath of the cavern ceiling suddenly collapsed 3054 | -10/Subcaves | Discovered new exit (range 3) 3057 | -10/Subcaves | Core integrity fell below 50% 3057 | -10/Subcaves | Entered Recycling 3773 | -7/Recycling | Build established: Commander-Mutant 3791 | -7/Recycling | Lost 4 allies 4360 | -7/Recycling | Discovered new exit (range 5) 4404 | -7/Recycling | Scanned before Scraplab entrance 4428 | -7/Recycling | Entered Scraplab 4442 | -7/Recycling | Discovered new exit (range 2) 4478 | -7/Recycling | Entered Scraptown 4478 | -7/Scraptown | Accompanied by 12 allies 4512 | -7/Scraptown | Heard Great Nut preacher, LISTEN AND RECITE! 5231 | -7/Scraptown | Discovered new exit (range 7) 5356 | -7/Scraptown | Scanned Subdweller tech in exchange for log data 5359 | -7/Scraptown | Learned location of Quarantine (-3) 5361 | -7/Scraptown | Learned 8 Factory zone layouts 5364 | -7/Scraptown | Learned location of 1 exit from Factory 5411 | -7/Scraptown | Visited Spacefarers 5518 | -7/Scraptown | Visited Shadow of the Wyrm 5589 | -7/Scraptown | Visited Red Mages 5686 | -7/Scraptown | Visited Cave Peace 5749 | -7/Scraptown | Visited Observation Area 5826 | -7/Scraptown | Visited Awakened 6232 | -7/Scraptown | Visited Cyclists 6343 | -7/Scraptown | Visited UFD Registry 6343 | -7/Scraptown | Registered with UFD as "Fiberback" 6376 | -7/Scraptown | Entered Cyclist Reading Room 6382 | -7/Scraptown | Learned location of Zion (-6) 6508 | -7/Scraptown | Visited Junk Repository 6559 | -7/Scraptown | Visited DA-N13 Charitable Foundation 6573 | -7/Scraptown | Found DCF Scrap (32 items) 6656 | -7/Scraptown | Visited Supply Room 6725 | -7/Scraptown | Visited Cartography Club 6838 | -7/Scraptown | Learned location of Lower Caves (-7) 6838 | -7/Scraptown | Learned location of Cetus (-6) 6838 | -7/Scraptown | Learned location of Hub_04(d) (-6) 6838 | -7/Scraptown | Learned 8 Lower Caves zone layouts 6838 | -7/Scraptown | Learned 12 Upper Caves zone layouts 6838 | -7/Scraptown | Learned 16 Upper Caves zone layouts 6838 | -7/Scraptown | Learned 12 Proximity Caves zone layouts 6838 | -7/Scraptown | Learned 16 Proximity Caves zone layouts 6838 | -7/Scraptown | Learned Research emergency access door positions 6838 | -7/Scraptown | Learned location of 2 exits from Lower Caves 6838 | -7/Scraptown | Learned location of 3 exits from Lower Caves 6838 | -7/Scraptown | Identified exit to Factory 6878 | -7/Scraptown | Found Deep Structural Scanner 7027 | -7/Scraptown | Visited Scrap Suit Storage 7048 | -7/Scraptown | Found Scrap Suit 7069 | -7/Scraptown | Visited Supply Room 7095 | -7/Scraptown | Visited Science Guys 7469 | -7/Scraptown | Visited Derelict Rescue Squad 7481 | -7/Scraptown | Found DRS Beacon 7519 | -7/Scraptown | Visited Curators Association 7775 | -7/Scraptown | Visited Infowarlord's Domain 7790 | -7/Scraptown | Found Exp. Terrain Scanner 8847 | -7/Scraptown | Found Scrap Suit 9017 | -7/Scraptown | Entered Factory 9017 | -5/Factory | Accompanied by 12 allies 9017 | -5/Factory | Evolved 10 slots: Power x1, Propulsion x2, Utility x7 9018 | -5/Factory | Identified exit to Upper Caves 9019 | -5/Factory | Identified exit to Factory 9020 | -5/Factory | Loaded intel: 4 garrison access locations 9226 | -5/Factory | Garrison activated, responded to threat 9325 | -5/Factory | Lost 8 allies 9414 | -5/Factory | Lost 4 allies 9544 | -5/Factory | Build established: Hauler-Mutant 9662 | -5/Factory | Discovered exit to Factory (range 14) 10447 | -5/Factory | Discovered exit to Factory (range 6) 10920 | -5/Factory | Destroyed 16 combat bots 11066 | -5/Factory | Found Prototype Processor 11117 | -5/Factory | First assault squad dispatched 11157 | -5/Factory | Scrapoid reinforcements arrived 11189 | -5/Factory | Entered Upper Caves 11189 | -5/Upper Caves | Accompanied by 5 allies 11190 | -5/Upper Caves | Identified exit to Upper Caves 11660 | -5/Upper Caves | Found Scrap Suit 11690 | -5/Upper Caves | Learned 12 Factory zone layouts 12703 | -5/Upper Caves | Entered another Upper Caves area 12703 | -5/Upper Caves | Accompanied by 3 allies 12704 | -5/Upper Caves | Identified exit to Warlord 12718 | -5/Upper Caves | Attacked by a delusional Derelict stockpiling Unaware 12841 | -5/Upper Caves | Attracted the attention of an 0b10 checkpoint 12878 | -5/Upper Caves | Learned Factory security intel 13267 | -5/Upper Caves | Build established: Hauler-Scrapper 13383 | -5/Upper Caves | Identified Exp. Targeting Computer 13443 | -5/Upper Caves | Encountered a Warlord checkpoint 13453 | -5/Upper Caves | Learned Factory terminal intel 13528 | -5/Upper Caves | Entered Warlord 13528 | -5/Warlord | Accompanied by 2 allies 13529 | -5/Warlord | Identified exit to Proximity Caves 13571 | -5/Warlord | System corruption cleaned by Quarantine Array 13790 | -5/Warlord | Received a Watcher feed algorithm from an ecstatic Tinkerer 14006 | -5/Warlord | Found Prototype Special Weapon 14006 | -5/Warlord | Identified RU-N14's Throwing Claymores v3 14012 | -5/Warlord | Found RU-N14's Throwing Claymores v3 14014 | -5/Warlord | Found RU-N14's Throwing Claymores v3 14017 | -5/Warlord | Found RU-N14's Throwing Claymores v3 14101 | -5/Warlord | Found Signal Generator 14103 | -5/Warlord | Found Signal Generator 14210 | -5/Warlord | Visited the Vortex Lab 14223 | -5/Warlord | Found Prototype Launcher 14225 | -5/Warlord | Warlord's base attacked by MAIN.C 14227 | -5/Warlord | Found Prototype Energy Cannon 14229 | -5/Warlord | Found Prototype Energy Cannon 14232 | -5/Warlord | Found Prototype Energy Cannon 14235 | -5/Warlord | Found Prototype Energy Cannon 14381 | -5/Warlord | Rebuked by Warlord 14413 | -5/Warlord | Found Prototype Reactor 14413 | -5/Warlord | Identified Vortex Chain Reactor 14419 | -5/Warlord | Found Exp. Targeting Computer 14426 | -5/Warlord | Found Prototype Processor 14575 | -5/Warlord | Warlord forces counterattacked 14663 | -5/Warlord | Spotted B-86 Titan 14680 | -5/Warlord | Spotted B-75 Beast 14684 | -5/Warlord | Destroyed B-75 Beast 14699 | -5/Warlord | Lost 4 allies 14725 | -5/Warlord | Spotted Executioner 14725 | -5/Warlord | Spotted Striker 14754 | -5/Warlord | Entered Proximity Caves 14754 | -4/Proximity Caves | Accompanied by 1 ally 14781 | -4/Proximity Caves | Lost 7 allies 14890 | -4/Proximity Caves | Learned location of 1 exit from Upper Caves 15010 | -4/Proximity Caves | Attracted the attention of an 0b10 checkpoint 15014 | -4/Proximity Caves | Spotter reported a threat 15298 | -4/Proximity Caves | Entered Factory 15298 | -4/Factory | Accompanied by 1 ally 15298 | -4/Factory | Evolved 2 slots: Utility x2 15301 | -4/Factory | Loaded intel: 26 terminal locations 15500 | -4/Factory | Found Prototype Launcher 15500 | -4/Factory | Identified Tesla Bomb Launcher 15519 | -4/Factory | Identified Exp. Armor Integrity Analyzer 15519 | -4/Factory | Identified Vortex Catalyst Activator 15519 | -4/Factory | Identified Vortex Driver (x4) 16147 | -4/Factory | Identified exit to Upper Caves 16184 | -4/Factory | Scrapoid reinforcements arrived 16258 | -4/Factory | Lost 4 allies 16335 | -4/Factory | Discovered new exit (range 8) 16467 | -4/Factory | Scrapoid reinforcements arrived 16540 | -4/Factory | Cargo convoy interrupted 16566 | -4/Factory | Sucked down chute 16566 | -4/Factory | Entered Waste 16566 | -4/Waste | Met up with 3 allies sucked down the chute earlier 16576 | -4/Waste | 1 allies followed down the chute 16592 | -4/Waste | Spotted C-40 Crusher 16594 | -4/Waste | Spotted C-40 Crusher 16601 | -4/Waste | Allies destroyed C-40 Crusher 16603 | -4/Waste | Destroyed C-40 Crusher 16614 | -4/Waste | Spotted C-40 Crusher 16615 | -4/Waste | Destroyed C-40 Crusher 16632 | -4/Waste | Spotted C-40 Crusher 16635 | -4/Waste | Destroyed C-40 Crusher 16662 | -4/Waste | Spotted C-40 Crusher 16664 | -4/Waste | Spotted C-40 Crusher 16668 | -4/Waste | Allies destroyed C-40 Crusher 16746 | -4/Waste | Found Damper Plating 16769 | -4/Waste | Warlord forces began an assault 16907 | -4/Waste | Discovered new exit (range 13) 17053 | -4/Waste | Entered Factory 17053 | -4/Factory | Accompanied by 22 allies 17074 | -4/Factory | Discovered exit to Upper Caves (range 15) 17267 | -4/Factory | Entered Upper Caves 17267 | -4/Upper Caves | Accompanied by 22 allies 17268 | -4/Upper Caves | Identified exit to Upper Caves 17344 | -4/Upper Caves | Learned Research trap positions 17922 | -4/Upper Caves | Attacked by a delusional Derelict stockpiling parts 18196 | -4/Upper Caves | Attracted the attention of an 0b10 outpost 18550 | -4/Upper Caves | Entered another Upper Caves area 18550 | -4/Upper Caves | Accompanied by 19 allies 18552 | -4/Upper Caves | Attracted the attention of an 0b10 checkpoint 18858 | -4/Upper Caves | Lost 3 allies 19078 | -4/Upper Caves | Spotted B-86 Titan 19101 | -4/Upper Caves | Destroyed B-86 Titan 19123 | -4/Upper Caves | Lost 6 allies 19142 | -4/Upper Caves | Attracted the attention of an 0b10 base 19249 | -4/Upper Caves | Found Alien Artifact 19334 | -4/Upper Caves | Learned Research terminal intel 19355 | -4/Upper Caves | Learned location of 2 exits from Lower Caves 19355 | -4/Upper Caves | Learned 6 Lower Caves zone layouts 19382 | -4/Upper Caves | Learned location of 1 exit from Research 19685 | -4/Upper Caves | Discovered new exit (range 16) 19821 | -4/Upper Caves | Entered Zhirov 19821 | -4/Zhirov | Accompanied by 4 allies 19822 | -4/Zhirov | Identified exit to Proximity Caves 19858 | -4/Zhirov | Met Zhirov 19956 | -4/Zhirov | Learned location of Testing (-2) 19956 | -4/Zhirov | Learned location of Command (-1) 19968 | -4/Zhirov | Zhirov requested help retrieving the SGEMP Prototype 19991 | -4/Zhirov | Found Alien Artifact 19991 | -4/Zhirov | Identified Integrated Dissipator 19991 | -4/Zhirov | Installed Integrated Dissipator, increased core heat dissipation (+20) 20009 | -4/Zhirov | Found Alien Artifact 20137 | -4/Zhirov | Entered Proximity Caves 20137 | -3/Proximity Caves | Accompanied by 4 allies 20287 | -3/Proximity Caves | Spotted B-86 Titan 20331 | -3/Proximity Caves | Activated DRS Beacon 20731 | -3/Proximity Caves | Discovered new exit (range 8) 20872 | -3/Proximity Caves | Attracted the attention of an 0b10 checkpoint 20965 | -3/Proximity Caves | Destroyed B-86 Titan 21009 | -3/Proximity Caves | Received a Behemoth hack from an annoying Tinkerer 21206 | -3/Proximity Caves | Entered Research 21206 | -3/Research | Accompanied by 5 allies 21206 | -3/Research | Evolved 2 slots: Utility x2 21207 | -3/Research | Identified exit to Research 21208 | -3/Research | Loaded intel: 105 trap records 21210 | -3/Research | Loaded intel: 24 terminal locations 21522 | -3/Research | Lost 3 allies 21533 | -3/Research | Destroyed 8 combat bots 21555 | -3/Research | Build established: Hauler-Mutant 21624 | -3/Research | Discovered new exit (range 11) 21634 | -3/Research | Attached Gun Armor, gained temporary slots: Weapon x2 21951 | -3/Research | Build established: Hauler-Gunner 22330 | -3/Research | Build established: Hauler-Tank 22536 | -3/Research | Found Heavy Servo Lattice 22540 | -3/Research | Discovered new exit (range 12) 22540 | -3/Research | Spotted B-90 Cyclops 22641 | -3/Research | Entered Quarantine 22802 | -3/Quarantine | Found Prototype Device 22926 | -3/Quarantine | Identified Dimensional Node Initializer 23011 | -3/Quarantine | Found Alien Impact Weapon 23011 | -3/Quarantine | Identified Core Stripper 23049 | -3/Quarantine | Found Gamma Bomb Array 23245 | -3/Quarantine | Found Alien Artifact 23286 | -3/Quarantine | Met incapacitated Sigix Warrior 23286 | -3/Quarantine | Lockdown squad dispatched 23292 | -3/Quarantine | Acquired the access code to the Sigix quarantine chamber 23295 | -3/Quarantine | Unlocked Sigix quarantine chamber 23304 | -3/Quarantine | Found Sigix Containment Pod 23318 | -3/Quarantine | Build established: Hauler-Mutant 23334 | -3/Quarantine | Spotted Lightning 23355 | -3/Quarantine | Spotted Lightning 23362 | -3/Quarantine | Destroyed Lightning 23364 | -3/Quarantine | Spotted Lightning 23380 | -3/Quarantine | Destroyed Lightning 23386 | -3/Quarantine | Destroyed Lightning 23394 | -3/Quarantine | Found Exp. Targeting Computer 23549 | -3/Quarantine | Identified Subatomic Replicator 23658 | -3/Quarantine | Found Alien Artifact 23680 | -3/Quarantine | Found Alien Artifact 23680 | -3/Quarantine | Identified Core Reset Matrix 23680 | -3/Quarantine | Identified Transdimensional Reconstructor 23680 | -3/Quarantine | Identified Hpw. Transdimensional Reconstructor 23680 | -3/Quarantine | Used Core Reset Matrix 23684 | -3/Quarantine | Sensed 10 artifacts in vicinity 23700 | -3/Quarantine | Identified Exp. EM Disruption Field 23882 | -3/Quarantine | Found Phase Armor 24080 | -3/Quarantine | Found Core Cannon 24221 | -3/Quarantine | Discovered exit to Research (range 7) 24356 | -3/Quarantine | Build established: Hauler-Tank 24686 | -3/Quarantine | Found Matter Drive 24918 | -3/Quarantine | First assault squad dispatched 25173 | -3/Quarantine | Entered Research 25173 | -2/Research | Evolved 2 slots: Power x1, Weapon x1 25296 | -2/Research | Identified exit to Testing 25468 | -2/Research | Fabricated Quantum Reactor? 25623 | -2/Research | Destroyed 9 combat bots 25627 | -2/Research | Scrapoid reinforcements arrived 25635 | -2/Research | Found Unknown Device 25635 | -2/Research | Identified Quantum Capacitor 25639 | -2/Research | Found Quantum Capacitor 25673 | -2/Research | First assault squad dispatched 25673 | -2/Research | Found Scrap Suit 25721 | -2/Research | Lost 4 allies 25869 | -2/Research | Destroyed 7 combat bots 25894 | -2/Research | Build established: Hauler-Gunner 25903 | -2/Research | Core integrity fell below 50% 25998 | -2/Research | Scrapoid reinforcements arrived 26047 | -2/Research | High security lockdown imminent 26127 | -2/Research | High security lockdown engaged 26132 | -2/Research | Discovered new exit (range 15) 26201 | -2/Research | Lost 5 allies 26213 | -2/Research | Emitted hypermatrix ping 26218 | -2/Research | Assembled emerged from beneath the floor 26223 | -2/Research | Core integrity fell below 20% 26229 | -2/Research | Self-destructed Last Messages --------------- 26221_ Penetrated by Slug. 26221_ Slug penetrates Wall. 26222_ Penetrated by Slug. 26222_ Slug penetrates Wall. 26223_ as-03498 destroyed. 26223_ as-12115 destroyed. 26223_ Slug penetrates Y-72 Warden. 26225_ as-52679 destroyed. 26226_ The unstable cave ceiling collapses. 26226_ Penetrated by Slug. 26226_ Adv. Force Field destroyed. 26226_ Penetrated by Slug. 26226_ Slug penetrates Scanalyzer. 26227_ Detected hypermatrix ping. 26227_ G-73 Enforcer IFF system glitched. 26228_ Penetrated by Slug. 26228_ Slug penetrates Scanalyzer. 26228_ Humpback destroyed. 26228_ Penetrated by Slug. 26228_ Slug penetrates Scanalyzer. Map ----- +----------------------------------------------------+ | ?????????? ####????????????????????????? | | ?????????? ####????????????????????????? | | ???????? # ????????????????????????? | | #### # ????????????????????????? | | #### # ????????????????????????? | | #### # ????????????????????????? | | ####### # ????????????????????????? | | + ????????????????????????? | | ! #####???????????????????????? | | =%= #####???????????????????????? | | #####???????????????????????? | | ###+######## ####???????????????????????? | | #### < + ## ###???????? | | #### #### ## ###???????? | | """"" ##### ##### ## ###???????? | | """"" ####??#####################???????? | | """"" ####??# # """ "" ####???????? | | ####??# ; ""S""" ####???????? | | ##### # # "" ####???????? | | ##### + # ####???????? | | #/##+######## # # ####???????? | | #%! ######## # # ######?????? | | [! "####### ######% b!!| ### ?????? | | ** "#######+######%;;l!!####+### ?????? | | ! *["### g%;&a!|! ### "?????? | | %+" !!]@&!| # "?????? | | " # %]%Y!!! + "?????? | | "* # Y=*!! # ?????? | | "!! # [ [ !a # ?????? | | "% # i # Y Y # ?????? | | #^! ^ " g + ?????? | | #! # ;#########?????? | | # # % ; Y ; ########?????? | | # " x #;; ##########?????? | | #+#" # ## #########?????? | | # " ## #####?????????? | | # #####+######### > #####?????????? | | # "#### ######### ####??????????? | | # ##### ######### ####??????????? | | # ##### ########### ######??????????? | | # ####???????###### ######??????????? | | # ####???????###### ######??????????? | | # ??????? ??????????? | | ????????????????????????? #????????????? | | ????????????????????????? #????????????? | | ??????????????????????????????????????????? | | ??????????????????????????????????????????? | | ??????????????????????????????????????????? | | ??????????????????????????????????????????? | | ??????????????????????????????????????????? | +----------------------------------------------------+ Best States ------------- Heat Dissipation 128 Coolant Potential 100 Energy Generation 75 Energy Capacity 940 Matter Stores 300 Matter Capacity 550 Sight Range 20 Terrain Scan Range 30 Terrain Scan Density 10 ECM Strength 2 Jamming Range 14 Base Temperature (-) 200 Armor Coverage 1660 Resistance: KI 25 Resistance: TH 25 Resistance: EM 90 Power Shielding 90 Phase Shifting 15 Evasion (%) 55 Targeting Accuracy 12 Armor Integrity Analysis 50 Recoil Reduction 6 Particle Charging 20 Kinecelleration 40 Offensive Hacking 10 Defensive Hacking 14 Authchip Count 1 Item Schematics ----------------- Adv. Plasma Rifle | -3/Quarantine | Archive Prc. Matter Filter | -3/Quarantine | Archive Neutron Missile Launcher | -3/Quarantine | Archive Robot Schematics ------------------ T-07 Excavator | -3/Quarantine | Archive B-74 Champion | -3/Quarantine | Archive L-61 Swordsman | -3/Quarantine | Archive Fabricated ------------ Quantum Reactor | x2 | -2/Research | Preloaded Alien Tech Used ----------------- Integrated Dissipator Core Stripper Core Reset Matrix Core Cannon Matter Drive Phase Armor Achievements -------------- Beloved Brute Force Generalissimo Hard Hitter Packrat Sunderer Challenges ------------ None Game ------ Seed MetaInertialBeacon Manual? 0 Play Time 08:48:02 Cumulative 182.8 hours Start 2024.09.05 @ 09:16:47 End 2024.09.10 @ 08:50:52 Sessions 13 Manual Loads 0 Difficulty Rogue Special Mode None Game No. 38 Rogue 38 Adventurer 0 Explorer 0 Win Type - Total 3 Types 1/0/1/1/0/0/0/0/0 Lore% 54 Gallery% 60 Achievement% 62 Wizard Run 0 Options --------- Layout 2 ASCII 0 Keyboard 1 Movement Vi Keybinds 1 Fullscreen 1 Font 24/Tamsyn Map View 50x44 Zoom Use 0% Tactical HUD 1 Map Filters NONE Filters NONE Steam 1 RUN: 3fbe017d-8f27-441f-a2ed-f88388726416